bitfinex/quotes_SOLUSD_20251006
["timestamp","ask_amount","ask_price","bid_price","bid_amount"]
[1759721644104,30.08,232.77,232.72,20.80000001]
[1759721644287,30.78,232.77,232.72,20.80000001]
[1759721644617,4.29627083,232.76,232.72,20.80000001]
[1759721644990,4.29627083,232.76,232.72,21.48000001]
[1759721645187,4.29627083,232.76,232.73,0.68]
[1759721645405,10.73911282,232.8,232.76,20.8]
[1759721645602,40.79911282,232.8,232.76,20.8]
[1759721645802,40.79911282,232.8,232.77,0.68]
[1759721646013,4.29588349,232.79,232.76,20.8]
[1759721646329,15.03517641,232.79,232.76,20.8]
[1759721646495,15.73517641,232.79,232.76,20.8]
[1759721648287,15.03517641,232.79,232.76,20.8]
[1759721649691,15.03517641,232.79,232.76,101.4]
[1759721649891,15.03517641,232.79,232.76,80.6]
[1759721650609,4.29588349,232.79,232.78,20.8]
[1759721650809,4.29588349,232.79,232.78,101.4]
[1759721652618,45.79371847,232.81,232.78,101.4]
[1759721652822,0.7,232.8,232.78,101.4]
[1759721653305,0.7,232.79,232.78,101.4]
[1759721653500,45.79371847,232.81,232.78,101.4]
[1759721653808,0.7,232.8,232.78,101.4]
[1759721654901,4.29571716,232.79,232.78,101.4]
[1759721655702,4.29571716,232.79,232.78,20.8]
[1759721655901,4.99571716,232.79,232.78,20.8]
[1759721657824,15.73501008,232.79,232.75,80.6]
[1759721658028,30.72,232.78,232.75,80.6]
[1759721658200,0.68,232.77,232.75,80.6]
[1759721659518,30.04,232.78,232.75,80.6]
[1759721659717,4.29608626,232.77,232.75,80.6]
[1759721660704,15.03565597,232.78,232.75,80.6]
[1759721660908,15.71565597,232.78,232.75,80.6]
[1759721661533,30.04,232.77,232.75,80.6]
[1759721661702,15.71565597,232.78,232.75,80.6]
[1759721661902,4.29627083,232.76,232.75,80.6]
[1759721664998,4.97627083,232.76,232.75,80.6]
[1759721668029,4.29627083,232.76,232.75,80.6]
[1759721668456,4.97627083,232.76,232.75,80.6]
[1759721668642,4.29627083,232.76,232.75,80.6]
[1759721673039,4.29608626,232.77,232.75,80.6]
[1759721673237,30.0,232.76,232.75,80.6]
[1759721675048,34.29627083,232.76,232.75,80.6]
[1759721676848,34.27627083,232.76,232.75,80.6]
[1759721679840,4.29608626,232.77,232.75,80.6]
[1759721680046,29.98,232.76,232.75,80.6]
[1759721680549,4.29608626,232.77,232.75,21.5]
[1759721680730,4.29553264,232.8,232.77,20.8]
[1759721680934,21.47531145,232.83,232.77,20.8]
[1759721680935,4.29497916,232.83,232.78,0.7]
[1759721681323,4.29497916,232.83,232.81,20.8]
[1759721682651,5.01497916,232.83,232.81,20.8]
[1759721682822,30.72,232.82,232.75,20.8]
[1759721683021,30.72,232.82,232.72,1e-08]
[1759721683022,0.72,232.81,232.72,1e-08]
[1759721683221,32.09246384,232.8,232.72,1e-08]
[1759721683639,0.72,232.79,232.72,20.80000001]
[1759721683836,30.72,232.78,232.72,1e-08]
[1759721684053,15.03630192,232.77,232.72,1e-08]
[1759721684241,30.0,232.76,232.72,1e-08]
[1759721684639,0.72,232.75,232.72,1e-08]
[1759721685252,30.72,232.76,232.72,1e-08]
[1759721686956,15.03759398,232.75,232.72,1e-08]
[1759721687144,30.0,232.74,232.72,1e-08]
[1759721687335,30.72,232.74,232.72,1e-08]
[1759721687741,30.0,232.74,232.72,1e-08]
[1759721687943,30.72,232.74,232.72,1e-08]
[1759721689639,4.29682464,232.73,232.72,1e-08]
[1759721691558,5.01682464,232.73,232.72,1e-08]
[1759721698459,35.01682464,232.73,232.72,1e-08]
[1759721698860,5.01682464,232.73,232.72,1e-08]
[1759721699067,35.01682464,232.73,232.72,1e-08]
[1759721700881,5.01682464,232.73,232.72,1e-08]
[1759721701044,35.01682464,232.73,232.72,1e-08]
[1759721701577,5.01682464,232.73,232.72,1e-08]
[1759721701752,35.01682464,232.73,232.72,1e-08]
[1759721704067,5.01682464,232.73,232.72,1e-08]
[1759721704376,35.01682464,232.73,232.72,1e-08]
[1759721705982,5.01682464,232.73,232.72,1e-08]
[1759721706174,35.01682464,232.73,232.72,1e-08]
[1759721706475,36.73625636,232.73,232.72,1e-08]
[1759721706644,4.29682464,232.73,232.72,1e-08]
[1759721706972,22.09246384,232.83,232.73,10.87647521]
[1759721706973,4.29608626,232.77,232.73,10.87647521]
[1759721707160,4.29608626,232.77,232.74,0.7]
[1759721708172,4.2959017,232.78,232.74,0.7]
[1759721709270,4.29534813,232.81,232.76,20.8]
[1759721709471,4.29534813,232.81,232.77,0.7]
[1759721709675,0.72,232.8,232.76,20.8]
[1759721709973,4.2959017,232.78,232.76,20.8]
[1759721710344,4.2959017,232.78,232.77,0.7]
[1759721710772,4.29571471,232.8,232.77,0.7]
[1759721710987,4.29571471,232.8,232.78,0.7]
[1759721711566,4.29571471,232.8,232.76,21.5]
[1759721711779,4.29571471,232.8,232.77,0.7]
[1759721712163,4.29571471,232.8,232.79,20.8]
[1759721713280,14.98099948,232.87,232.8,20.8]
[1759721713281,4.29516364,232.82,232.8,20.8]
[1759721713462,4.29516364,232.82,232.81,0.7]
[1759721714483,4.29461026,232.85,232.81,0.7]
[1759721714986,15.03113592,232.85,232.8,20.8]
[1759721715282,0.72,232.84,232.8,20.8]
[1759721715584,0.72,232.83,232.8,20.8]
[1759721715765,30.74,232.83,232.8,20.8]
[1759721716076,0.72,232.82,232.77,20.8]
[1759721716289,30.74,232.82,232.78,20.8]
[1759721716575,11.45698677,232.84,232.78,20.8]
[1759721716880,30.02,232.82,232.78,20.8]
[1759721717182,0.72,232.81,232.78,20.8]
[1759721717687,30.02,232.82,232.78,20.8]
[1759721717880,30.68,232.82,232.78,20.8]
[1759721718467,0.66,232.81,232.74,80.6]
[1759721718672,30.68,232.8,232.72,80.60000001]
[1759721718879,0.66,232.79,232.72,80.60000001]
[1759721719078,0.66,232.78,232.72,1e-08]
[1759721719284,0.66,232.78,232.73,20.8]
[1759721719464,30.68,232.77,232.73,20.8]
[1759721719789,30.68,232.77,232.72,1e-08]
[1759721719790,12.89241281,232.8,232.72,1e-08]
[1759721719991,30.02,232.79,232.74,0.71]
[1759721720376,30.68,232.79,232.74,0.71]
[1759721720590,15.03565597,232.78,232.74,0.71]
[1759721722092,15.03565597,232.78,232.73,20.8]
[1759721722269,15.03565597,232.78,232.73,21.51]
[1759721722470,10.73975427,232.78,232.73,21.51]
[1759721722693,11.39975427,232.78,232.73,21.51]
[1759721723297,0.66,232.77,232.73,20.8]
[1759721723601,0.66,232.76,232.73,20.8]
[1759721724802,4.29645542,232.75,232.74,20.8]
[1759721728198,4.95645542,232.75,232.74,20.8]
[1759721728589,4.29645542,232.75,232.74,20.8]
[1759721729888,15.03630192,232.77,232.75,20.8]
[1759721730089,15.69630192,232.77,232.74,80.6]
[1759721731606,4.29608626,232.77,232.76,20.8]
[1759721731908,4.29588579,232.79,232.77,20.8]
[1759721732095,10.73902213,232.8,232.77,21.51]
[1759721732302,11.39902213,232.8,232.77,20.8]
[1759721732614,10.73902213,232.8,232.77,20.8]
[1759721735407,10.73902213,232.8,232.77,21.5]
[1759721735584,4.29534813,232.81,232.78,0.7]
[1759721735781,15.03371847,232.81,232.78,0.7]
[1759721736207,15.03371847,232.81,232.77,20.8]
[1759721736380,15.03371847,232.81,232.77,21.5]
[1759721737306,10.73837034,232.81,232.77,102.1]
[1759721739390,11.42837034,232.81,232.77,102.1]
[1759721740213,10.73837034,232.81,232.77,102.1]
[1759721740509,0.69,232.8,232.77,101.4]
[1759721740710,0.69,232.79,232.77,101.4]
[1759721741023,0.69,232.8,232.77,80.6]
[1759721741208,0.69,232.79,232.77,80.6]
[1759721741810,4.2959017,232.78,232.75,20.8]
[1759721742111,4.2959017,232.78,232.77,20.8]
[1759721744212,10.73962805,232.79,232.77,20.8]
[1759721744710,11.42962805,232.79,232.77,20.8]
[1759721745113,0.69,232.78,232.77,20.8]
[1759721745502,10.73962805,232.79,232.77,20.8]
[1759721745695,11.42962805,232.79,232.77,20.8]
[1759721745895,10.73962805,232.79,232.77,20.8]
[1759721746094,2.02863093,232.78,232.72,1e-08]
[1759721746313,45.03630192,232.77,232.72,1e-08]
[1759721746724,0.69,232.76,232.72,1e-08]
[1759721749805,15.03759398,232.75,232.72,1e-08]
[1759721750311,0.66,232.74,232.72,1e-08]
[1759721751621,10.74113856,232.75,232.72,1e-08]
[1759721751826,0.66,232.73,232.72,1e-08]
[1759721753819,4.95682464,232.73,232.72,80.60000001]
[1759721755248,4.29682464,232.73,232.72,80.60000001]
[1759721755749,4.95682464,232.73,232.72,80.60000001]
[1759721756622,4.95682464,232.73,232.72,1e-08]
[1759721760649,34.95682464,232.73,232.72,1e-08]
[1759721761250,4.95682464,232.73,232.72,1e-08]
[1759721761437,34.95682464,232.73,232.72,1e-08]
[1759721762850,4.95682464,232.73,232.72,1e-08]
[1759721763052,10.74006384,232.78,232.72,0.72000001]
[1759721763236,40.74006384,232.78,232.72,0.72000001]
[1759721763440,0.66,232.77,232.72,0.72000001]
[1759721763627,0.66,232.76,232.72,1e-08]
[1759721763954,0.66,232.77,232.72,1e-08]
[1759721764138,0.66,232.77,232.72,0.72000001]
[1759721764752,15.03694792,232.76,232.72,0.72000001]
[1759721765238,15.03694792,232.76,232.73,0.72]
[1759721765550,0.66,232.75,232.72,1e-08]
[1759721766150,15.03694792,232.76,232.72,1e-08]
[1759721766337,0.66,232.75,232.72,1e-08]
[1759721767754,4.29664002,232.74,232.73,0.72]
[1759721768129,4.29664002,232.74,232.72,1e-08]
[1759721768445,4.29664002,232.74,232.72,0.72000001]
[1759721768650,4.29664002,232.74,232.72,81.32000001]
[1759721769158,10.74067709,232.76,232.72,81.32000001]
[1759721769558,10.74067709,232.76,232.72,80.60000001]
[1759721769863,10.74067709,232.76,232.75,20.8]
[1759721773154,10.74067709,232.76,232.75,101.4]
[1759721773963,4.29608626,232.77,232.75,102.0830591]
[1759721774140,4.29608626,232.77,232.76,0.72]
[1759721774836,4.29608626,232.77,232.76,81.32]
[1759721776667,10.73938575,232.79,232.78,20.8]
[1759721777465,11.39938575,232.79,232.78,20.8]
[1759721779483,15.69510291,232.79,232.78,20.8]
[1759721780462,4.29571716,232.79,232.78,102.12]
[1759721781252,4.29571716,232.79,232.78,101.4]
[1759721781456,15.03338605,232.82,232.78,102.12]
[1759721781755,15.03338605,232.82,232.78,101.4]
[1759721781956,15.71338605,232.82,232.78,101.4]
[1759721782174,15.71338605,232.82,232.78,102.12]
[1759721782552,15.71338605,232.82,232.78,101.4]
[1759721782950,15.71338605,232.82,232.78,102.12]
[1759721783771,15.71338605,232.82,232.78,101.4]
[1759721785058,0.68,232.87,232.79,11.59647521]
[1759721785255,4.29405702,232.88,232.82,20.8]
[1759721785456,4.29405702,232.88,232.83,0.72]
[1759721785657,4.97405702,232.88,232.83,0.72]
[1759721785857,0.68,232.87,232.82,20.8]
[1759721786354,0.68,232.86,232.82,20.8]
[1759721787373,15.03113592,232.85,232.84,20.8]
[1759721789367,10.73652566,232.85,232.84,20.8]
[1759721790079,11.41652566,232.85,232.76,0.72]
[1759721790252,1.33863093,232.82,232.72,1e-08]
[1759721790459,1.33863093,232.82,232.73,0.72]
[1759721790764,41.39652566,232.85,232.74,20.8]
[1759721790765,0.68,232.81,232.74,20.8]
[1759721790958,0.68,232.8,232.74,20.8]
[1759721791368,0.68,232.8,232.73,0.72]
[1759721791676,15.03501008,232.79,232.74,20.8]
[1759721791869,15.71501008,232.79,232.74,21.52]
[1759721792574,0.68,232.78,232.74,21.52]
[1759721793081,15.03501008,232.79,232.74,20.8]
[1759721793256,0.68,232.77,232.74,20.8]
[1759721793456,4.29627083,232.76,232.74,20.8]
[1759721794269,4.2959017,232.78,232.77,20.8]
[1759721794463,4.2959017,232.78,232.77,21.48]
[1759721795379,4.29534813,232.81,232.77,21.48]
[1759721795781,4.29534813,232.81,232.77,102.08]
[1759721795982,4.29534813,232.81,232.78,0.68]
[1759721796188,4.29534813,232.81,232.79,0.68]
[1759721797074,4.29534813,232.81,232.77,20.8]
[1759721797075,4.29497916,232.83,232.77,21.48]
[1759721798562,15.03242708,232.83,232.77,21.48]
[1759721801288,15.03242708,232.83,232.77,234.78]
[1759721801480,0.69,232.82,232.77,234.1]
[1759721801785,0.69,232.81,232.77,234.1]
[1759721801981,0.69,232.8,232.77,234.1]
[1759721802183,0.69,232.79,232.77,234.1]
[1759721802777,0.69,232.78,232.77,213.3]
[1759721803091,0.69,232.8,232.77,213.3]
[1759721803294,0.69,232.79,232.72,80.60000001]
[1759721803477,15.72565597,232.78,232.72,1e-08]
[1759721803988,15.72565597,232.78,232.72,20.80000001]
[1759721804292,0.69,232.77,232.72,20.80000001]
[1759721804490,15.03565597,232.78,232.72,20.80000001]
[1759721804491,15.03565597,232.78,232.73,0.68]
[1759721804794,0.69,232.77,232.72,20.80000001]
[1759721805092,0.69,232.76,232.72,20.80000001]
[1759721805671,4.29645542,232.75,232.72,20.80000001]
[1759721805875,4.29645542,232.75,232.72,21.48000001]
[1759721806709,15.03630192,232.77,232.72,21.48000001]
[1759721807076,15.72630192,232.77,232.72,21.48000001]
[1759721810297,0.7,232.76,232.72,234.78000001]
[1759721810800,15.03436425,232.8,232.72,234.10000001]
[1759721811011,0.7,232.76,232.72,234.10000001]
[1759721811173,0.7,232.76,232.72,234.79000001]
[1759721811805,36.51202748,232.8,232.72,234.10000001]
[1759721812006,0.7,232.75,232.72,20.80000001]
[1759721812311,4.29664002,232.74,232.72,20.80000001]
[1759721812519,2.79118096,232.73,232.72,1e-08]
[1759721812802,2.79118096,232.73,232.64,0.89]
[1759721812803,12.14125607,232.73,232.64,0.89]
[1759721813100,0.7,232.72,232.66,20.8]
[1759721813273,0.7,232.71,232.66,20.8]
[1759721813471,0.7,232.7,232.66,20.8]
[1759721814090,0.7,232.7,232.66,21.49]
[1759721814287,4.29756328,232.69,232.66,21.49]
[1759721816603,15.74147148,232.69,232.66,20.8]
[1759721816902,0.7,232.68,232.66,20.8]
[1759721817402,2.79118096,232.67,232.64,0.2]
[1759721817574,2.79118096,232.67,232.64,1e-08]
[1759721817575,2.09118096,232.65,232.64,1e-08]
[1759721817775,0.7,232.67,232.64,1e-08]
[1759721818012,0.7,232.65,232.64,1e-08]
[1759721818372,4.99830217,232.65,232.64,1e-08]
[1759721818579,7.08948313,232.65,232.64,1e-08]
[1759721818801,17.83523855,232.65,232.62,1e-08]
[1759721819115,2.09118096,232.64,232.62,1e-08]
[1759721819309,15.74405759,232.65,232.62,1e-08]
[1759721819310,2.09118096,232.63,232.62,1e-08]
[1759721819484,2.79118096,232.63,232.62,1e-08]
[1759721820186,32.83118096,232.63,232.62,1e-08]
[1759721820611,37.12985267,232.63,232.62,1e-08]
[1759721822904,50.03224606,232.63,232.62,1e-08]
[1759721824797,93.14875909,232.63,232.55,80.6]
[1759721825004,2.09118096,232.59,232.52,101.4]
[1759721825314,30.04,232.58,232.52,101.4]
[1759721825612,49.44110292,232.63,232.52,20.8]
[1759721825810,30.04,232.62,232.53,0.69]
[1759721827306,15.04664459,232.61,232.53,0.69]
[1759721827900,45.08664459,232.61,232.53,0.69]
[1759721828820,45.78664459,232.61,232.53,0.69]
[1759721829214,30.04,232.6,232.52,20.8]
[1759721829806,15.04793843,232.59,232.52,20.8]
[1759721830012,0.7,232.58,232.52,20.8]
[1759721830610,15.04793843,232.59,232.52,20.8]
[1759721830816,45.08793843,232.59,232.53,0.69]
[1759721832836,45.78793843,232.59,232.52,20.8]
[1759721833129,0.7,232.58,232.52,20.8]
[1759721834126,0.7,232.58,232.52,101.4]
[1759721834814,15.04793843,232.59,232.52,102.09]
[1759721835019,0.7,232.61,232.56,20.8]
[1759721835020,4.29904131,232.61,232.56,20.8]
[1759721835230,4.29904131,232.61,232.57,0.69]
[1759721835422,4.29904131,232.61,232.58,0.69]
[1759721836136,15.04664459,232.61,232.56,20.8]
[1759721836528,15.74664459,232.61,232.56,20.8]
[1759721837037,15.04664459,232.61,232.56,20.8]
[1759721837335,0.7,232.6,232.56,20.8]
[1759721838930,15.04664459,232.61,232.56,20.8]
[1759721839136,4.29959583,232.58,232.56,20.8]
[1759721840222,15.72858542,232.58,232.56,20.8]
[1759721841019,42.96239339,232.62,232.56,20.8]
[1759721841020,0.68,232.57,232.56,20.8]
[1759721841215,0.68,232.57,232.56,80.6]
[1759721841423,0.68,232.57,232.56,59.05276492]
[1759721842248,0.68,232.57,232.51,80.72276492]
[1759721842422,14.99523928,232.59,232.51,80.05276492]
[1759721842620,0.68,232.58,232.51,80.05276492]
[1759721843035,15.0498796,232.56,232.51,80.05276492]
[1759721843345,15.0498796,232.56,232.51,80.72276492]
[1759721843720,15.0498796,232.56,232.51,80.05276492]
[1759721843921,0.68,232.55,232.51,80.05276492]
[1759721844845,15.0498796,232.56,232.51,80.72276492]
[1759721845446,15.0498796,232.56,232.52,0.67]
[1759721845833,15.0498796,232.56,232.52,59.72276492]
[1759721848830,15.7298796,232.56,232.52,59.72276492]
[1759721849954,11.429914,232.56,232.52,59.05276492]
[1759721850741,10.749914,232.56,232.53,0.67]
[1759721851245,11.429914,232.56,232.52,59.05276492]
[1759721851826,15.7298796,232.56,232.52,59.05276492]
[1759721852026,15.0498796,232.56,232.52,59.72276492]
[1759721852727,15.7298796,232.56,232.52,59.72276492]
[1759721852923,15.7298796,232.56,232.52,59.05276492]
[1759721853129,15.7298796,232.56,232.52,59.72276492]
[1759721854244,15.7298796,232.56,232.52,59.05276492]
[1759721854847,15.0498796,232.56,232.53,0.68]
[1759721855220,10.749914,232.56,232.53,0.68]
[1759721856127,10.749914,232.56,232.52,59.05276492]
[1759721856350,10.749914,232.56,232.52,59.73276492]
[1759721857248,15.0498796,232.56,232.52,59.73276492]
[1759721858434,10.749914,232.56,232.52,59.73276492]
[1759721858630,11.409914,232.56,232.52,59.73276492]
[1759721859231,10.749914,232.56,232.52,59.73276492]
[1759721859443,11.409914,232.56,232.52,59.73276492]
[1759721861168,15.0498796,232.56,232.53,0.68]
[1759721861459,4.29830217,232.65,232.56,20.8]
[1759721861632,4.29830217,232.65,232.57,51.5]
[1759721861829,15.04405759,232.65,232.58,0.68]
[1759721862047,15.04405759,232.65,232.62,20.8]
[1759721862649,15.70405759,232.65,232.62,20.8]
[1759721863835,10.74575542,232.65,232.63,0.68]
[1759721864232,10.74575542,232.65,232.62,20.8]
[1759721864556,10.74575542,232.65,232.62,21.48]
[1759721866269,10.74575542,232.65,232.62,20.8]
[1759721866764,10.74575542,232.65,232.62,21.48]
[1759721867138,10.74575542,232.65,232.62,20.8]
[1759721868674,11.44575542,232.65,232.62,20.8]
[1759721869568,15.74405759,232.65,232.62,20.8]
[1759721870156,15.04405759,232.65,232.62,20.8]
[1759721870373,15.04405759,232.65,232.62,21.48]
[1759721870662,15.04405759,232.65,232.62,20.8]
[1759721870962,15.04405759,232.65,232.63,0.68]
[1759721871645,15.04405759,232.65,232.62,20.8]
[1759721871646,4.29793269,232.67,232.62,20.8]
[1759721871836,4.29793269,232.67,232.64,0.68]
[1759721872461,4.29793269,232.67,232.65,0.68]
[1759721873044,0.7,232.7,232.62,50.82]
[1759721873254,0.7,232.69,232.63,0.68]
[1759721874763,15.04211793,232.68,232.63,0.68]
[1759721874962,15.74211793,232.68,232.63,0.68]
[1759721875341,15.04211793,232.68,232.64,0.68]
[1759721875670,0.7,232.67,232.62,51.5]
[1759721875863,15.04211793,232.68,232.63,0.68]
[1759721876043,15.74211793,232.68,232.63,0.68]
[1759721878563,15.74211793,232.68,232.66,20.8]
[1759721880748,4.29774798,232.68,232.67,0.68]
[1759721880949,4.29737859,232.7,232.67,59.73276492]
[1759721881170,4.29737859,232.7,232.68,0.68]
[1759721881471,0.7,232.69,232.67,59.05276492]
[1759721882860,4.29774798,232.68,232.67,59.05276492]
[1759721883978,4.99774798,232.68,232.67,59.05276492]
[1759721884271,38.57244999,232.68,232.59,0.68]
[1759721884475,38.57244999,232.68,232.58,66.89377794]
[1759721884770,15.04341098,232.66,232.58,66.89377794]
[1759721885163,15.04341098,232.66,232.61,20.8]
[1759721885370,0.7,232.65,232.61,20.8]
[1759721887782,15.04470426,232.64,232.61,20.8]
[1759721889780,4.29848693,232.64,232.62,0.68]
[1759721889962,4.29827071,232.66,232.65,20.8]
[1759721890164,4.2959017,232.78,232.69,20.8]
[1759721890470,0.7,232.76,232.71,20.8]
[1759721890778,15.03934819,232.78,232.71,20.8]
[1759721890779,0.7,232.75,232.71,20.8]
[1759721891678,15.03824008,232.74,232.71,20.8]
[1759721892557,15.03824008,232.74,232.71,21.48]
[1759721892752,4.29664002,232.74,232.71,20.8]
[1759721893078,4.29664002,232.74,232.73,20.8]
[1759721893969,15.73636618,232.77,232.74,20.8]
[1759721894178,0.7,232.76,232.74,20.8]
[1759721895083,0.7,232.75,232.74,20.8]
[1759721895284,15.03636618,232.77,232.74,20.8]
[1759721895583,0.7,232.76,232.74,20.8]
[1759721896165,4.29645542,232.75,232.74,20.8]
[1759721896884,15.73759398,232.75,232.69,50.8]
[1759721897066,15.73759398,232.75,232.69,220.39377794]
[1759721899081,15.03759398,232.75,232.7,0.7]
[1759721899583,4.29645542,232.75,232.74,20.8]
[1759721899890,4.29645542,232.75,232.74,0.7]
[1759721900068,4.29626887,232.77,232.76,20.8]
[1759721900789,0.7,232.77,232.76,20.8]
[1759721900963,0.7,232.77,232.74,20.8]
[1759721901176,0.7,232.76,232.74,20.8]
[1759721901476,0.7,232.75,232.74,20.8]
[1759721901999,4.99645542,232.75,232.74,20.8]
[1759721902489,15.73759398,232.75,232.72,20.8]
[1759721902691,0.7,232.74,232.72,20.8]
[1759721904186,4.29682464,232.73,232.72,20.8]
[1759721905295,15.03888625,232.73,232.71,20.8]
[1759721906590,15.03694792,232.76,232.72,0.7]
[1759721907275,15.03694792,232.76,232.71,20.8]
[1759721907479,4.29627083,232.76,232.75,20.8]
[1759721907791,4.29603181,232.78,232.76,20.8]
[1759721907962,4.29603181,232.78,232.77,0.7]
[1759721908994,10.73958029,232.79,232.77,0.7]
[1759721910067,10.73958029,232.79,232.76,20.8]
[1759721910269,10.73958029,232.79,232.76,21.5]
[1759721910672,4.39536715,232.81,232.8,20.8]
[1759721911084,4.39536715,232.81,232.8,21.5]
[1759721911485,4.39536715,232.81,232.8,20.8]
[1759721914199,4.39536715,232.81,232.8,57.69377794]
[1759721915298,4.39536715,232.81,232.8,58.40377794]
[1759721915494,0.1,232.81,232.8,58.40377794]
[1759721916599,0.1,232.81,232.8,88.38377794]
[1759721916801,4.39534813,232.81,232.8,88.38377794]
[1759721917800,5.08534813,232.81,232.8,87.67377794]
[1759721917999,5.08534813,232.81,232.8,57.69377794]
[1759721918374,4.39534813,232.81,232.8,57.69377794]
[1759721926104,5.08534813,232.81,232.8,57.69377794]
[1759721928238,5.08534813,232.81,232.8,35.56933569]
[1759721928752,4.39534813,232.81,232.78,0.69]
[1759721929412,0.1,232.81,232.8,10.87647521]
[1759721929597,0.1,232.81,232.8,11.56647521]
[1759721931433,4.39534813,232.81,232.8,10.87647521]
[1759721931721,15.13371847,232.81,232.8,20.8]
[1759721931895,4.39534813,232.81,232.8,20.8]
[1759721932103,4.39534813,232.81,232.8,21.49]
[1759721932307,4.39534813,232.81,232.8,20.8]
[1759721933440,4.39534813,232.81,232.79,30.67]
[1759721933621,4.39534813,232.81,232.79,29.98]
[1759721933806,4.39534813,232.81,232.8,0.69]
[1759721934006,0.1,232.81,232.8,0.69]
[1759721935104,0.1,232.81,232.8,168.95933569]
[1759721935721,4.39534813,232.81,232.8,168.26933569]
[1759721936418,0.1,232.81,232.8,168.95933569]
[1759721937434,0.1,232.81,232.8,168.26933569]
[1759721937616,4.39534813,232.81,232.8,168.26933569]
[1759721941040,4.39534813,232.81,232.8,35.56933569]
[1759721941639,5.07534813,232.81,232.8,35.56933569]
[1759721945121,4.39534813,232.81,232.8,35.56933569]
[1759721945843,5.07534813,232.81,232.8,35.56933569]
[1759721952026,0.1,232.81,232.8,36.25933569]
[1759721952329,0.1,232.85,232.84,10.87647521]
[1759721952534,0.1,232.85,232.84,40.85647521]
[1759721952734,0.1,232.85,232.84,41.54647521]
[1759721958860,0.7,232.9,232.89,20.8]
[1759721959057,0.7,232.9,232.89,51.9750862]
[1759721960275,4.99368827,232.9,232.89,51.9750862]
[1759721963560,4.29368827,232.9,232.89,51.9750862]
[1759721963777,4.39351911,232.91,232.89,51.9750862]
[1759721963972,0.7,232.9,232.89,51.9750862]
[1759721964284,0.7,232.9,232.89,31.1750862]
[1759721964776,4.99368827,232.9,232.89,31.1750862]
[1759721965157,39.28745655,232.9,232.8,10.87647521]
[1759721965358,2.7911062,232.89,232.8,40.85647521]
[1759721965552,0.7,232.88,232.8,61.65647521]
[1759721965880,0.7,232.87,232.8,61.65647521]
[1759721966181,0.7,232.86,232.8,61.65647521]
[1759721966477,0.7,232.85,232.8,61.65647521]
[1759721966654,0.7,232.84,232.83,20.8]
[1759721966853,4.9947947,232.84,232.83,20.8]
[1759721968278,15.73178147,232.84,232.8,29.98]
[1759721968476,15.03178147,232.84,232.83,20.8]
[1759721968976,15.73178147,232.84,232.83,20.8]
[1759721970173,15.73178147,232.84,232.81,20.8]
[1759721970487,0.7,232.83,232.81,20.8]
[1759721971357,15.03178147,232.84,232.81,20.8]
[1759721971763,0.7,232.83,232.81,20.8]
[1759721972068,4.29516364,232.82,232.81,20.8]
[1759721972667,4.99516364,232.82,232.81,20.8]
[1759721979685,4.99516364,232.82,232.81,21.7779322]
[1759721981071,15.73307275,232.82,232.77,20.8]
[1759721981291,15.73307275,232.82,232.77,21.52]
[1759721981478,0.69,232.81,232.77,20.8]
[1759721982865,15.03436425,232.8,232.77,20.8]
[1759721983575,15.72436425,232.8,232.78,20.8]
[1759721985774,0.69,232.79,232.78,20.8]
[1759721986470,15.03436425,232.8,232.78,20.8]